Workbook

Sheet Sheet1
B1: The Indeterminate Form 0/0
B2: and Taylor Approximations
B4: This DIGMath spreadsheet provides a
B5: graphical representation for finding the limit
B6: of the indeterminate form 0/0
C7: lim x → a f(x) / g(x)
B8: where lim x → a f(x) = lim x → a g(x) = 0
B9: using the associated Taylor approximations.
A12: Enter the numerator function: f(x) = | E12: sin(1*x)
C13: =IF(Sheet2!D2=0,"","That is not zero at the point a") -> 
A14: and the denominator function: g(x) = | E14: 4*x
C15: =IF(Sheet2!E2=0,"","That is not zero at the point a") -> 
A17: What is the limit point a = | D17: 0
B18: =IF(OR(Sheet2!D2<>0,Sheet2!E2<>0),"Both functions have to be 0 at this point!!","") ->  | I18: The graphs of f(x)/g(x) and the Taylor polynomial ratios
A19: Enter the Taylor approximation to f:
B20: TAYLOR ( f(x) ) = | D20: x-x^3/6 | I20: Now trace along the various curves:
A21: and the Taylor approximation to g: | I21: x = | J21: =D26+K21*dx -> 1.098 | K21: 388
B22: TAYLOR ( g(x) ) = | D22: 5*x | I22: f/g = | J22: =LOOKUP(J$21,Sheet2!C3:C504,Sheet2!F3:F504) -> 0.203
H23: Taylor ratios = | J23: =LOOKUP(J$21,Sheet2!C4:C505,Sheet2!I4:I505) -> 0.160
A25: Now enter the interval for x :
B26: Starting value xMin = | D26: -2
B27: Ending value xMax = | D27: 2
A32: Click each item below for suggestions and investigations
B33: Item 1
B34: Item 2
B35: Item 3
B36: Item 4
B37: Item 5
B38: Item 6
H39: When x = | I39: =J21 -> 1.097804391 | O39: When x = | P39: =I39 -> 1.097804391
H40: f(x) = | I40: =Sheet2!K14 -> 0.8902092931 | O40: g(x) = | P40: =Sheet2!K21 -> 4.391217565
H41: TAYLOR (f(x) ) = | I41: =Sheet2!K16 -> 0.8772967516 | O41: TAYLOR (g(x) ) = | P41: =Sheet2!K23 -> 5.489021956
A42: To access/download all the DIGMath Apps for Calculus
A43: Click this link: | C43: DIGMath for Calculus
A45: Created by: Sheldon P. Gordon
A46: Farmingdale State College
A47: Development of this module was supported by the
A48: NSF's Division of Undergraduate Education
A49: under grants DUE-0310123 and DUE-0442160.

Sheet Sheet2
C1: x | D1: y = f(x) | E1: y = g(x) | F1: f(x)/g(x) | G1: Taylor(f) | H1: Taylor(g) | I1: Ratio | J1: Tracing points
C2: =a0 -> 0 | D2: =SIN(1*x) -> 0 | E2: =4*x -> 0 | G2: =x-x^3/6 -> 0 | H2: =5*x -> 0
C3: =a -> -2 | D3: -0.9092974268 | E3: -8 | F3: =D3/E3 -> 0.1136621784 | G3: -0.6666666667 | H3: -10 | I3: =G3/H3 -> 0.06666666667 | J3: 0 | K3: 0
C4: =C3+dx -> -1.992015968 | D4: -0.9125909398 | E4: -7.968063872 | F4: =D4/E4 -> 0.1145310774 | G4: -0.6745870387 | H4: -9.96007984 | I4: =G4/H4 -> 0.06772907943 | J4: =Sheet1!J$21 -> 1.097804391 | K4: =Sheet1!J22 -> 0.2027249345
C5: -1.984031936 | D5: -0.9158262803 | E5: -7.936127745 | F5: 0.1153996394 | G5: -0.6823804301 | H5: -9.920159681 | I5: 0.06878724255 | J5: on curve
C6: -1.976047904 | D6: -0.9190032419 | E6: -7.904191617 | F6: 0.1162678344 | G6: -0.6900473498 | H6: -9.880239521 | I6: 0.06984115601
C7: -1.968063872 | D7: -0.9221216221 | E7: -7.872255489 | F7: 0.117135632 | G7: -0.6975883069 | H7: -9.840319361 | I7: 0.07089081982 | J7: 0 | K7: 0
C8: -1.96007984 | D8: -0.9251812223 | E8: -7.840319361 | F8: 0.1180030021 | G8: -0.7050038101 | H8: -9.800399202 | I8: 0.07193623399 | J8: =Sheet1!J$21 -> 1.097804391 | K8: =Sheet1!J23 -> 0.1598275173
C9: -1.952095808 | D9: -0.9281818473 | E9: -7.808383234 | F9: 0.1188699145 | G9: -0.7122943686 | H9: -9.760479042 | I9: 0.0729773985 | J9: on derivatives
C10: -1.944111776 | D10: -0.9311233059 | E10: -7.776447106 | F10: 0.1197363389 | G10: -0.7194604911 | H10: -9.720558882 | I10: 0.07401431336
C11: -1.936127745 | D11: -0.9340054105 | E11: -7.744510978 | F11: 0.120602245 | G11: -0.7265026867 | H11: -9.680638723 | I11: 0.07504697856
A12: delta x = | B12: =(Sheet1!D27-Sheet1!D26)/501 -> 0.007984031936 | C12: -1.928143713 | D12: -0.9368279776 | E12: -7.71257485 | F12: 0.1214676027 | G12: -0.7334214643 | H12: -9.640718563 | I12: 0.07607539412 | J12: Points on graphs for f
C13: -1.920159681 | D13: -0.939590827 | E13: -7.680638723 | F13: 0.1223323816 | G13: -0.7402173328 | H13: -9.600798403 | I13: 0.07709956003
C14: -1.912175649 | D14: -0.9422937828 | E14: -7.648702595 | F14: 0.1231965515 | G14: -0.7468908012 | H14: -9.560878244 | I14: 0.07811947628 | J14: =J8 -> 1.097804391 | K14: =LOOKUP(J14,C$3:C$504,D$3:D$504) -> 0.8902092931
C15: -1.904191617 | D15: -0.9449366726 | E15: -7.616766467 | F15: 0.124060082 | G15: -0.7534423784 | H15: -9.520958084 | I15: 0.07913514289
C16: -1.896207585 | D16: -0.947519328 | E16: -7.584830339 | F16: 0.124922943 | G16: -0.7598725733 | H16: -9.481037924 | I16: 0.08014655984 | J16: =J14 -> 1.097804391 | K16: =LOOKUP(J16,C3:C504,G3:G504) -> 0.8772967516
C17: -1.888223553 | D17: -0.9500415843 | E17: -7.552894212 | F17: 0.125785104 | G17: -0.766181895 | H17: -9.441117764 | I17: 0.08115372714
C18: -1.880239521 | D18: -0.9525032807 | E18: -7.520958084 | F18: 0.1266465349 | G18: -0.7723708523 | H18: -9.401197605 | I18: 0.08215664479
C19: -1.872255489 | D19: -0.9549042603 | E19: -7.489021956 | F19: 0.1275072053 | G19: -0.7784399541 | H19: -9.361277445 | I19: 0.08315531279 | J19: Points on graphs for g
C20: -1.864271457 | D20: -0.9572443701 | E20: -7.457085828 | F20: 0.128367085 | G20: -0.7843897095 | H20: -9.321357285 | I20: 0.08414973114
C21: -1.856287425 | D21: -0.959523461 | E21: -7.425149701 | F21: 0.1292261435 | G21: -0.7902206273 | H21: -9.281437126 | I21: 0.08513989984 | J21: =J4 -> 1.097804391 | K21: =LOOKUP(J21,C$3:C$504,E$3:E$504) -> 4.391217565
C22: -1.848303393 | D22: -0.9617413875 | E22: -7.393213573 | F22: 0.1300843507 | G22: -0.7959332165 | H22: -9.241516966 | I22: 0.08612581889
C23: -1.840319361 | D23: -0.9638980084 | E23: -7.361277445 | F23: 0.1309416763 | G23: -0.801527986 | H23: -9.201596806 | I23: 0.08710748828 | J23: =J21 -> 1.097804391 | K23: =LOOKUP(J23,C$3:C$504,H$3:H$504) -> 5.489021956
C24: -1.832335329 | D24: -0.9659931862 | E24: -7.329341317 | F24: 0.1317980899 | G24: -0.8070054448 | H24: -9.161676647 | I24: 0.08808490803
C25: -1.824351297 | D25: -0.9680267873 | E25: -7.29740519 | F25: 0.1326535614 | G25: -0.8123661018 | H25: -9.121756487 | I25: 0.08905807812
C26: -1.816367265 | D26: -0.9699986821 | E26: -7.265469062 | F26: 0.1335080604 | G26: -0.817610466 | H26: -9.081836327 | I26: 0.09002699856
C27: -1.808383234 | D27: -0.9719087448 | E27: -7.233532934 | F27: 0.1343615566 | G27: -0.8227390463 | H27: -9.041916168 | I27: 0.09099166936
C28: -1.800399202 | D28: -0.9737568538 | E28: -7.201596806 | F28: 0.1352140199 | G28: -0.8277523516 | H28: -9.001996008 | I28: 0.0919520905
C29: -1.79241517 | D29: -0.9755428913 | E29: -7.169660679 | F29: 0.13606542 | G29: -0.8326508908 | H29: -8.962075848 | I29: 0.09290826199
C30: -1.784431138 | D30: -0.9772667433 | E30: -7.137724551 | F30: 0.1369157266 | G30: -0.837435173 | H30: -8.922155689 | I30: 0.09386018382
C31: -1.776447106 | D31: -0.9789283 | E31: -7.105788423 | F31: 0.1377649096 | G31: -0.8421057071 | H31: -8.882235529 | I31: 0.09480785601
C32: -1.768463074 | D32: -0.9805274554 | E32: -7.073852295 | F32: 0.1386129388 | G32: -0.8466630019 | H32: -8.842315369 | I32: 0.09575127855
C33: -1.760479042 | D33: -0.9820641078 | E33: -7.041916168 | F33: 0.139459784 | G33: -0.8511075665 | H33: -8.80239521 | I33: 0.09669045143
C34: -1.75249501 | D34: -0.983538159 | E34: -7.00998004 | F34: 0.140305415 | G34: -0.8554399098 | H34: -8.76247505 | I34: 0.09762537467
C35: -1.744510978 | D35: -0.9849495151 | E35: -6.978043912 | F35: 0.1411498018 | G35: -0.8596605406 | H35: -8.72255489 | I35: 0.09855604825
C36: -1.736526946 | D36: -0.9862980862 | E36: -6.946107784 | F36: 0.1419929141 | G36: -0.863769968 | H36: -8.682634731 | I36: 0.09948247218
C37: -1.728542914 | D37: -0.9875837862 | E37: -6.914171657 | F37: 0.142834722 | G37: -0.867768701 | H37: -8.642714571 | I37: 0.1004046465
C38: -1.720558882 | D38: -0.9888065333 | E38: -6.882235529 | F38: 0.1436751952 | G38: -0.8716572483 | H38: -8.602794411 | I38: 0.1013225711
C39: -1.71257485 | D39: -0.9899662495 | E39: -6.850299401 | F39: 0.1445143039 | G39: -0.875436119 | H39: -8.562874251 | I39: 0.1022362461
C40: -1.704590818 | D40: -0.9910628609 | E40: -6.818363273 | F40: 0.1453520179 | G40: -0.8791058221 | H40: -8.522954092 | I40: 0.1031456714
C41: -1.696606786 | D41: -0.9920962975 | E41: -6.786427146 | F41: 0.1461883074 | G41: -0.8826668664 | H41: -8.483033932 | I41: 0.1040508471
C42: -1.688622754 | D42: -0.9930664936 | E42: -6.754491018 | F42: 0.1470231422 | G42: -0.8861197609 | H42: -8.443113772 | I42: 0.1049517731
C43: -1.680638723 | D43: -0.9939733871 | E43: -6.72255489 | F43: 0.1478564926 | G43: -0.8894650146 | H43: -8.403193613 | I43: 0.1058484495
C44: -1.672654691 | D44: -0.9948169204 | E44: -6.690618762 | F44: 0.1486883285 | G44: -0.8927031363 | H44: -8.363273453 | I44: 0.1067408762
C45: -1.664670659 | D45: -0.9955970397 | E45: -6.658682635 | F45: 0.1495186202 | G45: -0.895834635 | H45: -8.323353293 | I45: 0.1076290533
C46: -1.656686627 | D46: -0.9963136952 | E46: -6.626746507 | F46: 0.1503473377 | G46: -0.8988600197 | H46: -8.283433134 | I46: 0.1085129807
C47: -1.648702595 | D47: -0.9969668413 | E47: -6.594810379 | F47: 0.1511744514 | G47: -0.9017797993 | H47: -8.243512974 | I47: 0.1093926585
C48: -1.640718563 | D48: -0.9975564363 | E48: -6.562874251 | F48: 0.1519999314 | G48: -0.9045944827 | H48: -8.203592814 | I48: 0.1102680866
C49: -1.632734531 | D49: -0.9980824426 | E49: -6.530938124 | F49: 0.1528237481 | G49: -0.9073045789 | H49: -8.163672655 | I49: 0.111139265
C50: -1.624750499 | D50: -0.9985448267 | E50: -6.499001996 | F50: 0.1536458717 | G50: -0.9099105969 | H50: -8.123752495 | I50: 0.1120061939
C51: -1.616766467 | D51: -0.9989435592 | E51: -6.467065868 | F51: 0.1544662726 | G51: -0.9124130455 | H51: -8.083832335 | I51: 0.112868873
C52: -1.608782435 | D52: -0.9992786145 | E52: -6.435129741 | F52: 0.1552849212 | G52: -0.9148124337 | H52: -8.043912176 | I52: 0.1137273025
C53: -1.600798403 | D53: -0.9995499715 | E53: -6.403193613 | F53: 0.1561017879 | G53: -0.9171092704 | H53: -8.003992016 | I53: 0.1145814824
C54: -1.592814371 | D54: -0.9997576127 | E54: -6.371257485 | F54: 0.1569168433 | G54: -0.9193040646 | H54: -7.964071856 | I54: 0.1154314126
C55: -1.584830339 | D55: -0.9999015249 | E55: -6.339321357 | F55: 0.1577300579 | G55: -0.9213973252 | H55: -7.924151697 | I55: 0.1162770932
C56: -1.576846307 | D56: -0.9999816989 | E56: -6.30738523 | F56: 0.1585414023 | G56: -0.9233895612 | H56: -7.884231537 | I56: 0.1171185241
C57: -1.568862275 | D57: -0.9999981297 | E57: -6.275449102 | F57: 0.159350847 | G57: -0.9252812815 | H57: -7.844311377 | I57: 0.1179557054
C58: -1.560878244 | D58: -0.9999508162 | E58: -6.243512974 | F58: 0.1601583628 | G58: -0.9270729951 | H58: -7.804391218 | I58: 0.118788637
C59: -1.552894212 | D59: -0.9998397614 | E59: -6.211576846 | F59: 0.1609639205 | G59: -0.9287652108 | H59: -7.764471058 | I59: 0.1196173189
C60: -1.54491018 | D60: -0.9996649724 | E60: -6.179640719 | F60: 0.1617674907 | G60: -0.9303584376 | H60: -7.724550898 | I60: 0.1204417512
C61: -1.536926148 | D61: -0.9994264603 | E61: -6.147704591 | F61: 0.1625690444 | G61: -0.9318531845 | H61: -7.684630739 | I61: 0.1212619339
C62: -1.528942116 | D62: -0.9991242404 | E62: -6.115768463 | F62: 0.1633685524 | G62: -0.9332499604 | H62: -7.644710579 | I62: 0.1220778669
C63: -1.520958084 | D63: -0.9987583318 | E63: -6.083832335 | F63: 0.1641659856 | G63: -0.9345492743 | H63: -7.604790419 | I63: 0.1228895502
C64: -1.512974052 | D64: -0.998328758 | E64: -6.051896208 | F64: 0.1649613152 | G64: -0.935751635 | H64: -7.564870259 | I64: 0.1236969839
C65: -1.50499002 | D65: -0.9978355463 | E65: -6.01996008 | F65: 0.1657545122 | G65: -0.9368575516 | H65: -7.5249501 | I65: 0.124500168
C66: -1.497005988 | D66: =SIN(1*x) -> -0.9972787281 | E66: =4*x -> -5.988023952 | F66: 0.1665455476 | G66: =x-x^3/6 -> -0.9378675329 | H66: =5*x -> -7.48502994 | I66: 0.1252991024
C67: -1.489021956 | D67: -0.9966583389 | E67: -5.956087824 | F67: 0.1673343927 | G67: -0.9387820879 | H67: -7.44510978 | I67: 0.1260937871
C68: =C67+dx -> -1.481037924 | D68: -0.9959744184 | E68: -5.924151697 | F68: =D68/E68 -> 0.1681210187 | G68: -0.9396017256 | H68: -7.405189621 | I68: =G68/H68 -> 0.1268842222
C69: -1.473053892 | D69: -0.99522701 | E69: -5.892215569 | F69: 0.168905397 | G69: -0.9403269548 | H69: -7.365269461 | I69: 0.1276704077
C70: -1.46506986 | D70: -0.9944161614 | E70: -5.860279441 | F70: 0.1696874989 | G70: -0.9409582846 | H70: -7.325349301 | I70: 0.1284523435
C71: -1.457085828 | D71: -0.9935419244 | E71: -5.828343313 | F71: 0.1704672959 | G71: -0.9414962238 | H71: -7.285429142 | I71: 0.1292300296
C72: -1.449101796 | D72: -0.9926043546 | E72: -5.796407186 | F72: 0.1712447595 | G72: -0.9419412815 | H72: -7.245508982 | I72: 0.1300034661
C73: -1.441117764 | D73: -0.9916035118 | E73: -5.764471058 | F73: 0.1720198613 | G73: -0.9422939665 | H73: -7.205588822 | I73: 0.130772653
C74: -1.433133733 | D74: -0.9905394598 | E74: -5.73253493 | F74: 0.1727925729 | G74: -0.9425547877 | H74: -7.165668663 | I74: 0.1315375902
C75: -1.425149701 | D75: -0.9894122664 | E75: -5.700598802 | F75: 0.1735628661 | G75: -0.9427242542 | H75: -7.125748503 | I75: 0.1322982777
C76: -1.417165669 | D76: -0.9882220035 | E76: -5.668662675 | F76: 0.1743307126 | G76: -0.9428028749 | H76: -7.085828343 | I76: 0.1330547156
C77: -1.409181637 | D77: -0.986968747 | E77: -5.636726547 | F77: 0.1750960844 | G77: -0.9427911587 | H77: -7.045908184 | I77: 0.1338069038
C78: -1.401197605 | D78: -0.9856525767 | E78: -5.604790419 | F78: 0.1758589533 | G78: -0.9426896145 | H78: -7.005988024 | I78: 0.1345548424
C79: -1.393213573 | D79: -0.9842735766 | E79: -5.572854291 | F79: 0.1766192915 | G79: -0.9424987513 | H79: -6.966067864 | I79: 0.1352985313
C80: -1.385229541 | D80: -0.9828318345 | E80: -5.540918164 | F80: 0.177377071 | G80: -0.942219078 | H80: -6.926147705 | I80: 0.1360379706
C81: -1.377245509 | D81: -0.9813274423 | E81: -5.508982036 | F81: 0.178132264 | G81: -0.9418511036 | H81: -6.886227545 | I81: 0.1367731603
C82: -1.369261477 | D82: -0.979760496 | E82: -5.477045908 | F82: 0.1788848427 | G82: -0.941395337 | H82: -6.846307385 | I82: 0.1375041002
C83: -1.361277445 | D83: -0.9781310954 | E83: -5.44510978 | F83: 0.1796347796 | G83: -0.9408522872 | H83: -6.806387226 | I83: 0.1382307906
C84: -1.353293413 | D84: -0.9764393444 | E84: -5.413173653 | F84: 0.180382047 | G84: -0.940222463 | H84: -6.766467066 | I84: 0.1389532313
C85: -1.345309381 | D85: -0.9746853509 | E85: -5.381237525 | F85: 0.1811266175 | G85: -0.9395063735 | H85: -6.726546906 | I85: 0.1396714223
C86: -1.337325349 | D86: -0.9728692265 | E86: -5.349301397 | F86: 0.1818684636 | G86: -0.9387045275 | H86: -6.686626747 | I86: 0.1403853637
C87: -1.329341317 | D87: -0.9709910872 | E87: -5.317365269 | F87: 0.1826075581 | G87: -0.9378174341 | H87: -6.646706587 | I87: 0.1410950554
C88: -1.321357285 | D88: -0.9690510526 | E88: -5.285429142 | F88: 0.1833438736 | G88: -0.9368456021 | H88: -6.606786427 | I88: 0.1418004975
C89: -1.313373253 | D89: -0.9670492465 | E89: -5.253493014 | F89: 0.1840773832 | G89: -0.9357895405 | H89: -6.566866267 | I89: 0.1425016899
C90: -1.305389222 | D90: -0.9649857963 | E90: -5.221556886 | F90: 0.1848080596 | G90: -0.9346497582 | H90: -6.526946108 | I90: 0.1431986327
C91: -1.29740519 | D91: -0.9628608336 | E91: -5.189620758 | F91: 0.185535876 | G91: -0.9334267642 | H91: -6.487025948 | I91: 0.1438913258
C92: -1.289421158 | D92: -0.960674494 | E92: -5.157684631 | F92: 0.1862608055 | G92: -0.9321210674 | H92: -6.447105788 | I92: 0.1445797693
C93: -1.281437126 | D93: -0.9584269166 | E93: -5.125748503 | F93: 0.1869828214 | G93: -0.9307331767 | H93: -6.407185629 | I93: 0.1452639631
C94: -1.273453094 | D94: -0.956118245 | E94: -5.093812375 | F94: 0.1877018968 | G94: -0.9292636011 | H94: -6.367265469 | I94: 0.1459439073
C95: -1.265469062 | D95: -0.9537486261 | E95: -5.061876248 | F95: 0.1884180054 | G95: -0.9277128496 | H95: -6.327345309 | I95: 0.1466196018
C96: -1.25748503 | D96: -0.951318211 | E96: -5.02994012 | F96: 0.1891311205 | G96: -0.926081431 | H96: -6.28742515 | I96: 0.1472910466
C97: -1.249500998 | D97: -0.9488271547 | E97: -4.998003992 | F97: 0.1898412159 | G97: -0.9243698544 | H97: -6.24750499 | I97: 0.1479582419
C98: -1.241516966 | D98: -0.946275616 | E98: -4.966067864 | F98: 0.1905482651 | G98: -0.9225786286 | H98: -6.20758483 | I98: 0.1486211874
C99: -1.233532934 | D99: -0.9436637575 | E99: -4.934131737 | F99: 0.1912522421 | G99: -0.9207082626 | H99: -6.167664671 | I99: 0.1492798833
C100: -1.225548902 | D100: -0.9409917456 | E100: -4.902195609 | F100: 0.1919531207 | G100: -0.9187592653 | H100: -6.127744511 | I100: 0.1499343296
C101: -1.21756487 | D101: -0.9382597508 | E101: -4.870259481 | F101: 0.1926508751 | G101: -0.9167321457 | H101: -6.087824351 | I101: 0.1505845262
C102: -1.209580838 | D102: -0.9354679472 | E102: -4.838323353 | F102: 0.1933454792 | G102: -0.9146274127 | H102: -6.047904192 | I102: 0.1512304732
C103: -1.201596806 | D103: -0.9326165126 | E103: -4.806387226 | F103: 0.1940369073 | G103: -0.9124455752 | H103: -6.007984032 | I103: 0.1518721705
C104: -1.193612774 | D104: -0.929705629 | E104: -4.774451098 | F104: 0.1947251338 | G104: -0.9101871423 | H104: -5.968063872 | I104: 0.1525096182
C105: -1.185628743 | D105: -0.9267354819 | E105: -4.74251497 | F105: 0.1954101332 | G105: -0.9078526228 | H105: -5.928143713 | I105: 0.1531428162
C106: -1.177644711 | D106: -0.9237062605 | E106: -4.710578842 | F106: 0.1960918799 | G106: -0.9054425256 | H106: -5.888223553 | I106: 0.1537717645
C107: -1.169660679 | D107: -0.9206181579 | E107: -4.678642715 | F107: 0.1967703486 | G107: -0.9029573598 | H107: -5.848303393 | I107: 0.1543964632
C108: -1.161676647 | D108: -0.9174713711 | E108: -4.646706587 | F108: 0.1974455141 | G108: -0.9003976342 | H108: -5.808383234 | I108: 0.1550169123
C109: -1.153692615 | D109: -0.9142661006 | E109: -4.614770459 | F109: 0.1981173514 | G109: -0.8977638578 | H109: -5.768463074 | I109: 0.1556331117
C110: -1.145708583 | D110: -0.9110025508 | E110: -4.582834331 | F110: 0.1987858353 | G110: -0.8950565396 | H110: -5.728542914 | I110: 0.1562450614
C111: -1.137724551 | D111: -0.9076809296 | E111: -4.550898204 | F111: 0.1994509411 | G111: -0.8922761884 | H111: -5.688622754 | I111: 0.1568527615
C112: -1.129740519 | D112: -0.9043014488 | E112: -4.518962076 | F112: 0.2001126439 | G112: -0.8894233133 | H112: -5.648702595 | I112: 0.157456212
C113: -1.121756487 | D113: -0.9008643238 | E113: -4.487025948 | F113: 0.2007709191 | G113: -0.8864984231 | H113: -5.608782435 | I113: 0.1580554128
C114: -1.113772455 | D114: -0.8973697738 | E114: -4.45508982 | F114: 0.2014257422 | G114: -0.8835020267 | H114: -5.568862275 | I114: 0.1586503639
C115: -1.105788423 | D115: -0.8938180214 | E115: -4.423153693 | F115: 0.2020770888 | G115: -0.8804346333 | H115: -5.528942116 | I115: 0.1592410654
C116: -1.097804391 | D116: -0.8902092931 | E116: -4.391217565 | F116: 0.2027249345 | G116: -0.8772967516 | H116: -5.489021956 | I116: 0.1598275173
C117: -1.089820359 | D117: -0.8865438189 | E117: -4.359281437 | F117: 0.2033692552 | G117: -0.8740888906 | H117: -5.449101796 | I117: 0.1604097195
C118: -1.081836327 | D118: -0.8828218325 | E118: -4.327345309 | F118: 0.2040100268 | G118: -0.8708115593 | H118: -5.409181637 | I118: 0.160987672
C119: -1.073852295 | D119: -0.8790435712 | E119: -4.295409182 | F119: 0.2046472254 | G119: -0.8674652665 | H119: -5.369261477 | I119: 0.1615613749
C120: -1.065868263 | D120: -0.8752092757 | E120: -4.263473054 | F120: 0.2052808273 | G120: -0.8640505214 | H120: -5.329341317 | I120: 0.1621308282
C121: -1.057884232 | D121: -0.8713191904 | E121: -4.231536926 | F121: 0.2059108087 | G121: -0.8605678326 | H121: -5.289421158 | I121: 0.1626960318
C122: -1.0499002 | D122: -0.8673735635 | E122: -4.199600798 | F122: 0.2065371461 | G122: -0.8570177093 | H122: -5.249500998 | I122: 0.1632569857
C123: -1.041916168 | D123: -0.8633726463 | E123: -4.167664671 | F123: 0.207159816 | G123: -0.8534006604 | H123: -5.209580838 | I123: 0.16381369
C124: -1.033932136 | D124: -0.8593166939 | E124: -4.135728543 | F124: 0.2077787952 | G124: -0.8497171948 | H124: -5.169660679 | I124: 0.1643661446
C125: -1.025948104 | D125: -0.8552059649 | E125: -4.103792415 | F125: 0.2083940605 | G125: -0.8459678214 | H125: -5.129740519 | I125: 0.1649143496
C126: -1.017964072 | D126: -0.8510407212 | E126: -4.071856287 | F126: 0.2090055889 | G126: -0.8421530491 | H126: -5.089820359 | I126: 0.1654583049
C127: -1.00998004 | D127: -0.8468212285 | E127: -4.03992016 | F127: 0.2096133574 | G127: -0.838273387 | H127: -5.0499002 | I127: 0.1659980106
C128: -1.001996008 | D128: -0.8425477556 | E128: -4.007984032 | F128: 0.2102173434 | G128: -0.834329344 | H128: -5.00998004 | I128: 0.1665334667
C129: -0.994011976 | D129: -0.838220575 | E129: -3.976047904 | F129: 0.2108175241 | G129: -0.8303214289 | H129: -4.97005988 | I129: 0.167064673
C130: -0.9860279441 | D130: =SIN(1*x) -> -0.8338399625 | E130: =4*x -> -3.944111776 | F130: 0.2114138771 | G130: =x-x^3/6 -> -0.8262501508 | H130: =5*x -> -4.930139721 | I130: 0.1675916298
C131: -0.9780439122 | D131: -0.8294061973 | E131: -3.912175649 | F131: 0.21200638 | G131: -0.8221160186 | H131: -4.890219561 | I131: 0.1681143369
C132: =C131+dx -> -0.9700598802 | D132: -0.8249195621 | E132: -3.880239521 | F132: =D132/E132 -> 0.2125950106 | G132: -0.8179195412 | H132: -4.850299401 | I132: =G132/H132 -> 0.1686327943
C133: -0.9620758483 | D133: -0.8203803429 | E133: -3.848303393 | F133: 0.2131797468 | G133: -0.8136612275 | H133: -4.810379242 | I133: 0.1691470021
C134: -0.9540918164 | D134: -0.8157888291 | E134: -3.816367265 | F134: 0.2137605666 | G134: -0.8093415866 | H134: -4.770459082 | I134: 0.1696569602
C135: -0.9461077844 | D135: -0.8111453132 | E135: -3.784431138 | F135: 0.2143374483 | G135: -0.8049611273 | H135: -4.730538922 | I135: 0.1701626687
C136: -0.9381237525 | D136: -0.8064500913 | E136: -3.75249501 | F136: 0.2149103701 | G136: -0.8005203585 | H136: -4.690618762 | I136: 0.1706641275
C137: -0.9301397206 | D137: -0.8017034628 | E137: -3.720558882 | F137: 0.2154793105 | G137: -0.7960197893 | H137: -4.650698603 | I137: 0.1711613367
C138: -0.9221556886 | D138: -0.7969057301 | E138: -3.688622754 | F138: 0.2160442482 | G138: -0.7914599286 | H138: -4.610778443 | I138: 0.1716542962
C139: -0.9141716567 | D139: -0.7920571991 | E139: -3.656686627 | F139: 0.216605162 | G139: -0.7868412852 | H139: -4.570858283 | I139: 0.1721430061
C140: -0.9061876248 | D140: -0.7871581789 | E140: -3.624750499 | F140: 0.2171620306 | G140: -0.7821643682 | H140: -4.530938124 | I140: 0.1726274663
C141: -0.8982035928 | D141: -0.7822089817 | E141: -3.592814371 | F141: 0.2177148332 | G141: -0.7774296865 | H141: -4.491017964 | I141: 0.1731076769
C142: -0.8902195609 | D142: -0.7772099231 | E142: -3.560878244 | F142: 0.218263549 | G142: -0.772637749 | H142: -4.451097804 | I142: 0.1735836378
C143: -0.8822355289 | D143: -0.7721613216 | E143: -3.528942116 | F143: 0.2188081573 | G143: -0.7677890647 | H143: -4.411177645 | I143: 0.174055349
C144: -0.874251497 | D144: -0.7670634992 | E144: -3.497005988 | F144: 0.2193486376 | G144: -0.7628841424 | H144: -4.371257485 | I144: 0.1745228107
C145: -0.8662674651 | D145: -0.7619167808 | E145: -3.46506986 | F145: 0.2198849696 | G145: -0.7579234912 | H145: -4.331337325 | I145: 0.1749860226
C146: -0.8582834331 | D146: -0.7567214944 | E146: -3.433133733 | F146: 0.220417133 | G146: -0.75290762 | H146: -4.291417166 | I146: 0.1754449849
C147: -0.8502994012 | D147: -0.7514779712 | E147: -3.401197605 | F147: 0.2209451077 | G147: -0.7478370377 | H147: -4.251497006 | I147: 0.1758996976
C148: -0.8423153693 | D148: -0.7461865455 | E148: -3.369261477 | F148: 0.221468874 | G148: -0.7427122533 | H148: -4.211576846 | I148: 0.1763501606
C149: -0.8343313373 | D149: -0.7408475546 | E149: -3.337325349 | F149: 0.221988412 | G149: -0.7375337757 | H149: -4.171656687 | I149: 0.176796374
C150: -0.8263473054 | D150: -0.7354613387 | E150: -3.305389222 | F150: 0.2225037021 | G150: -0.7323021138 | H150: -4.131736527 | I150: 0.1772383377
C151: -0.8183632735 | D151: -0.7300282413 | E151: -3.273453094 | F151: 0.2230147249 | G151: -0.7270177766 | H151: -4.091816367 | I151: 0.1776760518
C152: -0.8103792415 | D152: -0.7245486087 | E152: -3.241516966 | F152: 0.2235214612 | G152: -0.7216812731 | H152: -4.051896208 | I152: 0.1781095162
C153: -0.8023952096 | D153: -0.7190227901 | E153: -3.209580838 | F153: 0.2240238917 | G153: -0.7162931121 | H153: -4.011976048 | I153: 0.1785387309
C154: -0.7944111776 | D154: -0.7134511379 | E154: -3.177644711 | F154: 0.2245219975 | G154: -0.7108538026 | H154: -3.972055888 | I154: 0.178963696
C155: -0.7864271457 | D155: -0.7078340071 | E155: -3.145708583 | F155: 0.2250157599 | G155: -0.7053638535 | H155: -3.932135729 | I155: 0.1793844115
C156: -0.7784431138 | D156: -0.7021717558 | E156: -3.113772455 | F156: 0.22550516 | G156: -0.6998237739 | H156: -3.892215569 | I156: 0.1798008773
C157: -0.7704590818 | D157: -0.696464745 | E157: -3.081836327 | F157: 0.2259901796 | G157: -0.6942340725 | H157: -3.852295409 | I157: 0.1802130934
C158: -0.7624750499 | D158: -0.6907133385 | E158: -3.0499002 | F158: 0.2264708001 | G158: -0.6885952585 | H158: -3.81237525 | I158: 0.1806210599
C159: -0.754491018 | D159: -0.6849179028 | E159: -3.017964072 | F159: 0.2269470035 | G159: -0.6829078406 | H159: -3.77245509 | I159: 0.1810247768
C160: -0.746506986 | D160: -0.6790788074 | E160: -2.986027944 | F160: 0.2274187717 | G160: -0.6771723279 | H160: -3.73253493 | I160: 0.181424244
C161: -0.7385229541 | D161: -0.6731964245 | E161: -2.954091816 | F161: 0.227886087 | G161: -0.6713892292 | H161: -3.69261477 | I161: 0.1818194615
C162: -0.7305389222 | D162: -0.6672711291 | E162: -2.922155689 | F162: 0.2283489315 | G162: -0.6655590536 | H162: -3.652694611 | I162: 0.1822104294
C163: -0.7225548902 | D163: -0.6613032989 | E163: -2.890219561 | F163: 0.2288072878 | G163: -0.65968231 | H163: -3.612774451 | I163: 0.1825971477
C164: -0.7145708583 | D164: -0.6552933143 | E164: -2.858283433 | F164: 0.2292611386 | G164: -0.6537595073 | H164: -3.572854291 | I164: 0.1829796163
C165: -0.7065868263 | D165: -0.6492415584 | E165: -2.826347305 | F165: 0.2297104666 | G165: -0.6477911544 | H165: -3.532934132 | I165: 0.1833578352
C166: -0.6986027944 | D166: -0.643148417 | E166: -2.794411178 | F166: 0.2301552549 | G166: -0.6417777603 | H166: -3.493013972 | I166: 0.1837318045
C167: -0.6906187625 | D167: -0.6370142784 | E167: -2.76247505 | F167: 0.2305954866 | G167: -0.6357198339 | H167: -3.453093812 | I167: 0.1841015242
C168: -0.6826347305 | D168: -0.6308395338 | E168: -2.730538922 | F168: 0.231031145 | G168: -0.6296178842 | H168: -3.413173653 | I168: 0.1844669942
C169: -0.6746506986 | D169: -0.6246245766 | E169: -2.698602794 | F169: 0.2314622137 | G169: -0.6234724202 | H169: -3.373253493 | I169: 0.1848282145
C170: -0.6666666667 | D170: -0.6183698031 | E170: -2.666666667 | F170: 0.2318886762 | G170: -0.6172839506 | H170: -3.333333333 | I170: 0.1851851852
C171: -0.6586826347 | D171: -0.6120756119 | E171: -2.634730539 | F171: 0.2323105163 | G171: -0.6110529846 | H171: -3.293413174 | I171: 0.1855379062
C172: -0.6506986028 | D172: -0.6057424044 | E172: -2.602794411 | F172: 0.2327277182 | G172: -0.6047800309 | H172: -3.253493014 | I172: 0.1858863776
C173: -0.6427145709 | D173: -0.5993705841 | E173: -2.570858283 | F173: 0.233140266 | G173: -0.5984655987 | H173: -3.213572854 | I173: 0.1862305993
C174: -0.6347305389 | D174: -0.5929605573 | E174: -2.538922156 | F174: 0.233548144 | G174: -0.5921101968 | H174: -3.173652695 | I174: 0.1865705714
C175: -0.626746507 | D175: -0.5865127326 | E175: -2.506986028 | F175: 0.2339513368 | G175: -0.5857143341 | H175: -3.133732535 | I175: 0.1869062939
C176: -0.618762475 | D176: -0.580027521 | E176: -2.4750499 | F176: 0.234349829 | G176: -0.5792785196 | H176: -3.093812375 | I176: 0.1872377666
C177: -0.6107784431 | D177: -0.5735053358 | E177: -2.443113772 | F177: 0.2347436056 | G177: -0.5728032622 | H177: -3.053892216 | I177: 0.1875649898
C178: -0.6027944112 | D178: -0.5669465929 | E178: -2.411177645 | F178: 0.2351326515 | G178: -0.5662890709 | H178: -3.013972056 | I178: 0.1878879633
C179: -0.5948103792 | D179: -0.5603517103 | E179: -2.379241517 | F179: 0.2355169521 | G179: -0.5597364546 | H179: -2.974051896 | I179: 0.1882066871
C180: -0.5868263473 | D180: -0.5537211084 | E180: -2.347305389 | F180: 0.2358964926 | G180: -0.5531459223 | H180: -2.934131737 | I180: 0.1885211613
C181: -0.5788423154 | D181: -0.5470552098 | E181: -2.315369261 | F181: 0.2362712587 | G181: -0.5465179828 | H181: -2.894211577 | I181: 0.1888313858
C182: -0.5708582834 | D182: -0.5403544395 | E182: -2.283433134 | F182: 0.2366412362 | G182: -0.5398531452 | H182: -2.854291417 | I182: 0.1891373607
C183: -0.5628742515 | D183: -0.5336192247 | E183: -2.251497006 | F183: 0.237006411 | G183: -0.5331519184 | H183: -2.814371257 | I183: 0.1894390859
C184: -0.5548902196 | D184: -0.5268499946 | E184: -2.219560878 | F184: 0.2373667691 | G184: -0.5264148113 | H184: -2.774451098 | I184: 0.1897365615
C185: -0.5469061876 | D185: -0.5200471807 | E185: -2.18762475 | F185: 0.237722297 | G185: -0.5196423328 | H185: -2.734530938 | I185: 0.1900297874
C186: -0.5389221557 | D186: -0.5132112168 | E186: -2.155688623 | F186: 0.2380729811 | G186: -0.5128349919 | H186: -2.694610778 | I186: 0.1903187637
C187: -0.5309381238 | D187: -0.5063425384 | E187: -2.123752495 | F187: 0.238418808 | G187: -0.5059932976 | H187: -2.654690619 | I187: 0.1906034903
C188: -0.5229540918 | D188: -0.4994415836 | E188: -2.091816367 | F188: 0.2387597647 | G188: -0.4991177587 | H188: -2.614770459 | I188: 0.1908839673
C189: -0.5149700599 | D189: -0.4925087921 | E189: -2.05988024 | F189: 0.239095838 | G189: -0.4922088843 | H189: -2.574850299 | I189: 0.1911601946
C190: -0.5069860279 | D190: -0.485544606 | E190: -2.027944112 | F190: 0.2394270154 | G190: -0.4852671831 | H190: -2.53493014 | I190: 0.1914321722
C191: -0.499001996 | D191: -0.4785494691 | E191: -1.996007984 | F191: 0.239753284 | G191: -0.4782931643 | H191: -2.49500998 | I191: 0.1916999003
C192: -0.4910179641 | D192: -0.4715238273 | E192: -1.964071856 | F192: 0.2400746316 | G192: -0.4712873368 | H192: -2.45508982 | I192: 0.1919633786
C193: -0.4830339321 | D193: -0.4644681285 | E193: -1.932135729 | F193: 0.2403910459 | G193: -0.4642502094 | H193: -2.415169661 | I193: 0.1922226073
C194: -0.4750499002 | D194: =SIN(1*x) -> -0.4573828225 | E194: =4*x -> -1.900199601 | F194: 0.2407025148 | G194: =x-x^3/6 -> -0.4571822911 | H194: =5*x -> -2.375249501 | I194: 0.1924775864
C195: -0.4670658683 | D195: -0.4502683608 | E195: -1.868263473 | F195: 0.2410090265 | G195: -0.4500840908 | H195: -2.335329341 | I195: 0.1927283158
C196: =C195+dx -> -0.4590818363 | D196: -0.4431251971 | E196: -1.836327345 | F196: =D196/E196 -> 0.2413105693 | G196: -0.4429561176 | H196: -2.295409182 | I196: =G196/H196 -> 0.1929747956
C197: -0.4510978044 | D197: -0.4359537866 | E197: -1.804391218 | F197: 0.2416071317 | G197: -0.4357988803 | H197: -2.255489022 | I197: 0.1932170257
C198: -0.4431137725 | D198: -0.4287545865 | E198: -1.77245509 | F198: 0.2418987025 | G198: -0.4286128879 | H198: -2.215568862 | I198: 0.1934550062
C199: -0.4351297405 | D199: -0.4215280556 | E199: -1.740518962 | F199: 0.2421852705 | G199: -0.4213986493 | H199: -2.175648703 | I199: 0.193688737
C200: -0.4271457086 | D200: -0.4142746547 | E200: -1.708582834 | F200: 0.2424668248 | G200: -0.4141566734 | H200: -2.135728543 | I200: 0.1939182181
... 304 more rows

Sheet Defining Function
A1: Defining a Function in Excel
A3: Computers have very specific rules you must follow when defining a function. If you don't, the program will either not work at all or will work incorrectly.
A5: 1. The Variable used should be the one named in the instruction, usually x, though sometimes y, t, Q (for an angle theta),
A6: or even x and y (for a function of two variables).
A8: 2. Order of Operations: There five arithmetic operations, addition (+), subtraction (-), multiplication (*), division (/), and exponentiation or power (^). When computers see any of these operation symbols, they perform the indicated steps in a very particular order. First, the power is done. Second, products and quotients of adjacent terms is done. Third, and last, sums and differences of adjacent terms are done. So, in 10*x^3 + 5*x – 7, say with x = 2, the first pass only calculates 2^3 and ignores the multiplications and the sums and differences to calculate 2^3 = 8. The second pass looks at 10*8 + 5*2 – 7 and only does the multiplications, so it produces 80 + 10 - 7. The third pass looks at the +’s and –‘s to produce 80 + 10 – 7 = 83.
A10: 3. Parentheses If you need an operation involving more than two adjacent terms, as in Ö4^3 + 6^2, the computer would take the square root of 4 to produce 2^3 + 6^2; it would then cube the 2 and square the 6 to produce 8 + 36; and finally it would add the 8 and the 36 to get 44. If you actually wanted the square root of the entire expression, you would need to use parentheses, as in Ö(4^3 + 6^2) to tell the computer to do all the operations inside the parentheses before taking the square root. Therefore, it would calculate (4^3 + 6^2) = 64 + 36 = 100 and then take the square root of Ö100 = 10.
A12: 4. Built-In Functions Computer programs have built-in functions for most common algebraic functions. In Excel, the square root function is denoted by SQRT(…), so SQRT(100) = 10. Alternatively, you could enter it as 100^.5 or 100^(1/2); notice that parentheses are needed to have the ½ done first. The common trig functions are SIN (…), COS (…), and TAN (…), where the arguments are automatically interpreted as being in radians, not degrees. The logarithm to the base 10 is represented by LOG (…) and the logarithm with the base e, known as the natural logarithm, is LN (…). The corresponding exponential function with base e is EXP (x). If x is the variable, then each of these would be SQRT (x), SIN (x), COS (x), TAN (x), LOG (x) (for log with base 10 ), LN (x) (for log with base e ), and EXP (x).

Sheet Sheet3
